[Event "*** Titled Tuesday Blitz"]
[Site "Chess.com"]
[Date "2018.12.04"]
[Round "7"]
[White "eldur16"]
[Black "martinique24"]
[Result "1-0"]
[WhiteElo "2640"]
[BlackElo "2412"]
[TimeControl "180+2"]
[EndTime "14:39:47 PST"]
[Termination "eldur16 won by resignation"]

1. e4 {[%clk 0:03:01.9]} 1... e5 {[%clk 0:03:00.6]} 2. Nf3 {[%clk 0:03:01.9]}
2... Nf6 {[%clk 0:03:01.6]} 3. Nc3 {[%clk 0:03:01.9]} 3... Nc6 {[%clk
0:03:01.1]} 4. Bb5 {[%clk 0:03:02.4]} 4... Bb4 {[%clk 0:02:56.7]} 5. O-O {[%clk
0:03:03]} 5... O-O {[%clk 0:02:57.4]} 6. d3 {[%clk 0:03:03.4]} 6... d6 {[%clk
0:02:58.7]} 7. Bg5 {[%clk 0:03:02.6]} 7... Bxc3 {[%clk 0:02:59.6]} 8. bxc3
{[%clk 0:03:03]} 8... Qe7 {[%clk 0:03:01.1]} 9. Re1 {[%clk 0:03:03.1]} 9... Nd8
{[%clk 0:03:02.1]} 10. d4 {[%clk 0:03:04.1]} 10... Ne6 {[%clk 0:03:00.6]} 11.
Bc1 {[%clk 0:03:04.7]} 11... Bd7 {[%clk 0:02:26.2]} 12. Bf1 {[%clk 0:02:51.3]}
12... Nf4 {[%clk 0:02:22.5]} 13. Rb1 {[%clk 0:02:48.2]} 13... b6 {[%clk
0:02:21.5]} 14. h3 {[%clk 0:02:33.7]} 14... Ng6 {[%clk 0:02:15.7]} 15. g3 {[%clk
0:02:32.2]} 15... Rfe8 {[%clk 0:02:14]} 16. Bg2 {[%clk 0:02:30.4]} 16... Bc6
{[%clk 0:02:14.8]} 17. d5 {[%clk 0:02:17.9]} 17... Bb7 {[%clk 0:02:10.9]} 18. c4
{[%clk 0:02:16.9]} 18... Nd7 {[%clk 0:02:11.7]} 19. h4 {[%clk 0:02:14.9]} 19...
Nc5 {[%clk 0:02:11.8]} 20. Nh2 {[%clk 0:02:06.6]} 20... Bc8 {[%clk 0:02:10.9]}
21. Be3 {[%clk 0:01:51]} 21... h6 {[%clk 0:02:04.8]} 22. Bf3 {[%clk 0:01:41.2]}
22... f5 {[%clk 0:01:49.4]} 23. Bh5 {[%clk 0:01:36.5]} 23... Qf7 {[%clk
0:01:38.6]} 24. Bxc5 {[%clk 0:01:36.1]} 24... bxc5 {[%clk 0:01:38]} 25. exf5
{[%clk 0:01:24.8]} 25... Bxf5 {[%clk 0:01:38.9]} 26. Ng4 {[%clk 0:01:20.3]}
26... Rf8 {[%clk 0:01:36.2]} 27. Ne3 {[%clk 0:01:15.5]} 27... Bd7 {[%clk
0:01:21.3]} 28. Qe2 {[%clk 0:01:01.4]} 28... Qf6 {[%clk 0:01:21.1]} 29. Rb7
{[%clk 0:00:58.5]} 29... Rac8 {[%clk 0:01:17.7]} 30. Rxa7 {[%clk 0:00:53.6]}
30... Nxh4 {[%clk 0:01:17.4]} 31. gxh4 {[%clk 0:00:48.5]} 31... Qxh4 {[%clk
0:01:17.5]} 32. Ng2 {[%clk 0:00:42.2]} 32... Qg5 {[%clk 0:01:14.4]} 33. Ra3
{[%clk 0:00:39.9]} 33... Ra8 {[%clk 0:00:54.8]} 34. Rg3 {[%clk 0:00:38.7]} 34...
Qf6 {[%clk 0:00:54.3]} 35. a3 {[%clk 0:00:34.8]} 35... e4 {[%clk 0:00:54.5]} 36.
f4 {[%clk 0:00:21.4]} 36... exf3 {[%clk 0:00:53.9]} 37. Rxf3 {[%clk 0:00:22.4]}
37... Qd4+ {[%clk 0:00:51.5]} 38. Qe3 {[%clk 0:00:21.6]} 38... Rxf3 {[%clk
0:00:39.6]} 39. Qxd4 {[%clk 0:00:21.3]} 39... cxd4 {[%clk 0:00:40.9]} 40. Bxf3
{[%clk 0:00:22.4]} 40... Rxa3 {[%clk 0:00:42.6]} 41. Be4 {[%clk 0:00:23.5]}
41... Kf7 {[%clk 0:00:39.6]} 42. Rf1+ {[%clk 0:00:20.6]} 42... Ke7 {[%clk
0:00:39.5]} 43. Bg6 {[%clk 0:00:21]} 43... c6 {[%clk 0:00:34.4]} 44. Rf7+ {[%clk
0:00:21.1]} 44... Kd8 {[%clk 0:00:36]} 45. Rxg7 {[%clk 0:00:20.8]} 45... Rc3
{[%clk 0:00:34.3]} 46. Nf4 {[%clk 0:00:20.7]} 46... Rxc4 {[%clk 0:00:31.6]} 47.
Bd3 {[%clk 0:00:21.6]} 47... Ra4 {[%clk 0:00:27.3]} 48. dxc6 {[%clk 0:00:22.2]}
48... Bxc6 {[%clk 0:00:22.5]} 49. Kf2 {[%clk 0:00:22.5]} 49... Bd7 {[%clk
0:00:23.1]} 50. Rh7 {[%clk 0:00:22.4]} 50... Ra1 {[%clk 0:00:15.4]} 51. Rxh6
{[%clk 0:00:22.9]} 51... Kc7 {[%clk 0:00:16.9]} 52. Rh7 {[%clk 0:00:23.2]} 52...
Kc6 {[%clk 0:00:16.4]} 53. Be4+ {[%clk 0:00:23.3]} 53... d5 {[%clk 0:00:15.4]}
54. Nxd5 {[%clk 0:00:22.9]} 54... Kd6 {[%clk 0:00:16.9]} 55. Nb4 {[%clk
0:00:22.2]} 55... Be6 {[%clk 0:00:16.9]} 56. Nd3 {[%clk 0:00:21.8]} 56... Ra5
{[%clk 0:00:15.1]} 57. Rh6 {[%clk 0:00:22]} 57... Ke7 {[%clk 0:00:16.1]} 58. Kg3
{[%clk 0:00:22.6]} 58... Rg5+ {[%clk 0:00:17.1]} 59. Kf4 {[%clk 0:00:23.5]}
59... Ra5 {[%clk 0:00:17.4]} 60. Rh7+ {[%clk 0:00:22.6]} 60... Kf6 {[%clk
0:00:18]} 61. Rb7 {[%clk 0:00:21.6]} 61... Ra1 {[%clk 0:00:17.2]} 62. Rb4 {[%clk
0:00:22]} 62... Rf1+ {[%clk 0:00:17.7]} 63. Kg3 {[%clk 0:00:21.9]} 63... Rc1
{[%clk 0:00:17.3]} 64. Nxc1 {[%clk 0:00:21.9]} 1-0

[Event "*** Titled Tuesday Blitz"]
[Site "Chess.com"]
[Date "2018.12.04"]
[Round "7"]
[White "chesstatour"]
[Black "Morshynska"]
[Result "1-0"]
[WhiteElo "2092"]
[BlackElo "2063"]
[TimeControl "180+2"]
[EndTime "14:39:47 PST"]
[Termination "chesstatour won by checkmate"]

1. c4 {[%clk 0:03:01.9]} 1... e5 {[%clk 0:02:54.5]} 2. Nc3 {[%clk 0:03:01.4]}
2... Nf6 {[%clk 0:02:53.8]} 3. Nf3 {[%clk 0:03:00.5]} 3... Nc6 {[%clk 0:02:54]}
4. d4 {[%clk 0:03:01.8]} 4... exd4 {[%clk 0:02:54]} 5. Nxd4 {[%clk 0:03:03.7]}
5... Bb4 {[%clk 0:02:54.9]} 6. g3 {[%clk 0:03:02.5]} 6... O-O {[%clk 0:02:49.5]}
7. Nc2 {[%clk 0:03:03.2]} 7... Bxc3+ {[%clk 0:02:49.1]} 8. bxc3 {[%clk
0:03:05.1]} 8... d6 {[%clk 0:02:40.3]} 9. Bg2 {[%clk 0:03:02.5]} 9... Be6 {[%clk
0:02:40.1]} 10. Ne3 {[%clk 0:03:01.9]} 10... Qd7 {[%clk 0:02:26.3]} 11. Nd5
{[%clk 0:02:44.2]} 11... Ne8 {[%clk 0:02:20.7]} 12. O-O {[%clk 0:02:38]} 12...
Bh3 {[%clk 0:02:14]} 13. Bxh3 {[%clk 0:02:24.1]} 13... Qxh3 {[%clk 0:02:15.9]}
14. Rb1 {[%clk 0:02:21]} 14... b6 {[%clk 0:02:11.3]} 15. Qa4 {[%clk 0:01:30.9]}
15... Ne5 {[%clk 0:01:50.5]} 16. f3 {[%clk 0:01:28.6]} 16... Qd7 {[%clk
0:01:41]} 17. Qb3 {[%clk 0:01:06.7]} 17... Qe6 {[%clk 0:01:19.1]} 18. Ba3 {[%clk
0:00:29.4]} 18... f5 {[%clk 0:01:05.4]} 19. c5 {[%clk 0:00:13.3]} 19... dxc5
{[%clk 0:00:51.1]} 20. Ne7+ {[%clk 0:00:13.3]} 20... Kf7 {[%clk 0:00:51.7]} 21.
Nxf5 {[%clk 0:00:10.6]} 21... c4 {[%clk 0:00:36.9]} 22. Qc2 {[%clk 0:00:11.1]}
22... Rh8 {[%clk 0:00:25.1]} 23. Nd4 {[%clk 0:00:11.2]} 23... Qf6 {[%clk
0:00:21.7]} 24. e4 {[%clk 0:00:09.4]} 24... c5 {[%clk 0:00:21.5]} 25. Nf5 {[%clk
0:00:09.2]} 25... g6 {[%clk 0:00:20.2]} 26. Nh4 {[%clk 0:00:09.5]} 26... Nd6
{[%clk 0:00:19.6]} 27. f4 {[%clk 0:00:10.2]} 27... Nd3 {[%clk 0:00:18]} 28. e5
{[%clk 0:00:10.7]} 28... Qe6 {[%clk 0:00:18.7]} 29. exd6 {[%clk 0:00:10.2]}
29... Qxd6 {[%clk 0:00:20.6]} 30. Qg2 {[%clk 0:00:10.3]} 30... Rae8 {[%clk
0:00:20.3]} 31. f5 {[%clk 0:00:10.9]} 31... g5 {[%clk 0:00:20.9]} 32. Nf3 {[%clk
0:00:11.1]} 32... h6 {[%clk 0:00:22.1]} 33. Rbd1 {[%clk 0:00:11.2]} 33... Re3
{[%clk 0:00:22.1]} 34. Rd2 {[%clk 0:00:10]} 34... Rhe8 {[%clk 0:00:22.9]} 35.
Bc1 {[%clk 0:00:09.5]} 35... R3e7 {[%clk 0:00:22]} 36. Rc2 {[%clk 0:00:08.2]}
36... b5 {[%clk 0:00:22.6]} 37. h4 {[%clk 0:00:08.4]} 37... g4 {[%clk
0:00:22.5]} 38. Nh2 {[%clk 0:00:08.7]} 38... h5 {[%clk 0:00:23.6]} 39. Bf4
{[%clk 0:00:08.6]} 39... Qd7 {[%clk 0:00:17.7]} 40. Bg5 {[%clk 0:00:09.1]} 40...
Re1 {[%clk 0:00:15.4]} 41. Rxe1 {[%clk 0:00:05.5]} 41... Nxe1 {[%clk 0:00:16.5]}
42. Qd2 {[%clk 0:00:04.4]} 42... Nd3 {[%clk 0:00:14.6]} 43. Nf1 {[%clk
0:00:03.9]} 43... a5 {[%clk 0:00:14.1]} 44. Bf4 {[%clk 0:00:03.9]} 44... a4
{[%clk 0:00:15.1]} 45. Ne3 {[%clk 0:00:05]} 45... a3 {[%clk 0:00:15.7]} 46. Nf1
{[%clk 0:00:03.3]} 46... Qc6 {[%clk 0:00:16.7]} 47. Qg2 {[%clk 0:00:04.1]} 47...
Qd7 {[%clk 0:00:15.5]} 48. Rd2 {[%clk 0:00:04.4]} 48... Kg7 {[%clk 0:00:14.4]}
49. Ne3 {[%clk 0:00:05.7]} 49... Qf7 {[%clk 0:00:14.4]} 50. Qd5 {[%clk
0:00:06.1]} 50... b4 {[%clk 0:00:15]} 51. Qxf7+ {[%clk 0:00:06.7]} 51... Kxf7
{[%clk 0:00:16.9]} 52. Nxc4 {[%clk 0:00:06.5]} 52... Nxf4 {[%clk 0:00:16.6]} 53.
gxf4 {[%clk 0:00:07.1]} 53... Re1+ {[%clk 0:00:16.7]} 54. Kf2 {[%clk 0:00:07.8]}
54... Rh1 {[%clk 0:00:16.8]} 55. cxb4 {[%clk 0:00:07.3]} 55... cxb4 {[%clk
0:00:17]} 56. Rd7+ {[%clk 0:00:07.3]} 56... Ke8 {[%clk 0:00:17.4]} 57. Kg2
{[%clk 0:00:08.7]} 57... Rc1 {[%clk 0:00:17.4]} 58. Ne5 {[%clk 0:00:08.3]} 58...
Rc2+ {[%clk 0:00:17.8]} 59. Kf1 {[%clk 0:00:08]} 59... b3 {[%clk 0:00:17.8]} 60.
f6 {[%clk 0:00:07.7]} 60... bxa2 {[%clk 0:00:17.2]} 61. f7+ {[%clk 0:00:08.8]}
61... Kf8 {[%clk 0:00:17.2]} 62. Rd8+ {[%clk 0:00:10.1]} 62... Kg7 {[%clk
0:00:19.1]} 63. f8=Q+ {[%clk 0:00:11.5]} 63... Kh7 {[%clk 0:00:18.8]} 64. Rd7#
{[%clk 0:00:11.5]} 1-0

[Event "*** Titled Tuesday Blitz"]
[Site "Chess.com"]
[Date "2018.12.04"]
[Round "7"]
[White "Mykola-Bortnyk"]
[Black "Guenplen"]
[Result "1/2-1/2"]
[WhiteElo "2850"]
[BlackElo "2839"]
[TimeControl "180+2"]
[EndTime "14:40:11 PST"]
[Termination "Game drawn - insufficient material"]

1. e4 {[%clk 0:03:01.9]} 1... c5 {[%clk 0:03:00.6]} 2. c3 {[%clk 0:03:02.9]}
2... e6 {[%clk 0:03:01.7]} 3. d4 {[%clk 0:03:04]} 3... d5 {[%clk 0:03:02.7]} 4.
exd5 {[%clk 0:03:03.9]} 4... exd5 {[%clk 0:03:04.6]} 5. Nf3 {[%clk 0:03:05.4]}
5... a6 {[%clk 0:03:05.6]} 6. Be3 {[%clk 0:03:01.4]} 6... cxd4 {[%clk
0:03:06.5]} 7. Nxd4 {[%clk 0:03:02.6]} 7... Nf6 {[%clk 0:03:07]} 8. Bd3 {[%clk
0:03:00.3]} 8... Bd6 {[%clk 0:03:07.3]} 9. h3 {[%clk 0:03:00.3]} 9... O-O {[%clk
0:03:04.9]} 10. O-O {[%clk 0:02:59.7]} 10... Nc6 {[%clk 0:03:04.5]} 11. Nd2
{[%clk 0:02:57.1]} 11... Re8 {[%clk 0:03:02.1]} 12. Re1 {[%clk 0:02:48]} 12...
Ne5 {[%clk 0:02:55.7]} 13. Bf1 {[%clk 0:02:47.1]} 13... h6 {[%clk 0:02:46.3]}
14. Bf4 {[%clk 0:02:33]} 14... Ng6 {[%clk 0:02:32.6]} 15. Rxe8+ {[%clk
0:02:32.2]} 15... Nxe8 {[%clk 0:02:34.5]} 16. Bxd6 {[%clk 0:02:32.9]} 16... Qxd6
{[%clk 0:02:33.3]} 17. Qf3 {[%clk 0:02:27.2]} 17... Nf6 {[%clk 0:02:32.3]} 18.
Re1 {[%clk 0:02:26.6]} 18... Bd7 {[%clk 0:02:32.4]} 19. Bd3 {[%clk 0:02:26.6]}
19... Nh4 {[%clk 0:02:08.1]} 20. Qg3 {[%clk 0:02:23.7]} 20... Qxg3 {[%clk
0:02:07.6]} 21. fxg3 {[%clk 0:02:25.6]} 21... Ng6 {[%clk 0:02:09.1]} 22. Bxg6
{[%clk 0:02:14.6]} 22... fxg6 {[%clk 0:02:09.1]} 23. g4 {[%clk 0:02:13.7]} 23...
g5 {[%clk 0:01:59.3]} 24. Re5 {[%clk 0:02:12.5]} 24... Kf8 {[%clk 0:01:54.3]}
25. Nf1 {[%clk 0:01:59.3]} 25... Re8 {[%clk 0:01:37.7]} 26. Rxe8+ {[%clk
0:01:59.5]} 26... Kxe8 {[%clk 0:01:39.6]} 27. Ne3 {[%clk 0:01:59.9]} 27... g6
{[%clk 0:01:36]} 28. Nf3 {[%clk 0:01:54]} 28... Ke7 {[%clk 0:01:35.4]} 29. Kf2
{[%clk 0:01:52.5]} 29... Ne4+ {[%clk 0:01:32.3]} 30. Ke1 {[%clk 0:01:51.6]}
30... Kd6 {[%clk 0:01:29.8]} 31. Nd2 {[%clk 0:01:47.3]} 31... Nc5 {[%clk
0:01:26.2]} 32. Ke2 {[%clk 0:01:30.3]} 32... Bb5+ {[%clk 0:01:25.5]} 33. Kf3
{[%clk 0:01:30.4]} 33... Bc6 {[%clk 0:01:08.4]} 34. Kg3 {[%clk 0:01:25.4]} 34...
Nd3 {[%clk 0:01:06.3]} 35. b4 {[%clk 0:01:18.4]} 35... Nc1 {[%clk 0:00:57.6]}
36. c4 {[%clk 0:01:01.2]} 36... dxc4 {[%clk 0:00:50.8]} 37. Ndxc4+ {[%clk
0:00:59.8]} 37... Ke6 {[%clk 0:00:51.9]} 38. a3 {[%clk 0:00:59.6]} 38... Ne2+
{[%clk 0:00:39.4]} 39. Kf2 {[%clk 0:01:00.7]} 39... Nf4 {[%clk 0:00:41.2]} 40.
Na5 {[%clk 0:00:55.6]} 40... Be4 {[%clk 0:00:39.1]} 41. Nb3 {[%clk 0:00:56.4]}
41... b6 {[%clk 0:00:27.3]} 42. Nd2 {[%clk 0:00:53.1]} 42... Bd5 {[%clk
0:00:24.7]} 43. Kg3 {[%clk 0:00:37.4]} 43... Ne2+ {[%clk 0:00:24.6]} 44. Kf2
{[%clk 0:00:38.8]} 44... Nf4 {[%clk 0:00:25.9]} 45. Kg3 {[%clk 0:00:40.1]} 45...
Ke5 {[%clk 0:00:26.3]} 46. Nxd5 {[%clk 0:00:38.4]} 46... Kxd5 {[%clk 0:00:26.4]}
47. h4 {[%clk 0:00:39.4]} 47... Ne2+ {[%clk 0:00:20.2]} 48. Kf2 {[%clk
0:00:40.6]} 48... Nd4 {[%clk 0:00:21.5]} 49. hxg5 {[%clk 0:00:40]} 49... hxg5
{[%clk 0:00:23.4]} 50. a4 {[%clk 0:00:30.8]} 50... Nc2 {[%clk 0:00:20.4]} 51. b5
{[%clk 0:00:29.1]} 51... axb5 {[%clk 0:00:22.3]} 52. axb5 {[%clk 0:00:30.1]}
52... Nd4 {[%clk 0:00:23.6]} 53. Ke3 {[%clk 0:00:28.2]} 53... Nxb5 {[%clk
0:00:21]} 54. Ne4 {[%clk 0:00:28.3]} 54... Nd6 {[%clk 0:00:19.6]} 55. Nxg5
{[%clk 0:00:28.7]} 55... Kc4 {[%clk 0:00:19.6]} 56. Kd2 {[%clk 0:00:28.2]} 56...
Kd4 {[%clk 0:00:17.9]} 57. Nf3+ {[%clk 0:00:19.6]} 57... Ke4 {[%clk 0:00:18.3]}
58. g5 {[%clk 0:00:19.5]} 58... Kf4 {[%clk 0:00:17.2]} 59. Kc3 {[%clk
0:00:19.5]} 59... Kg3 {[%clk 0:00:11.7]} 60. Ne5 {[%clk 0:00:19.6]} 60... Kxg2
{[%clk 0:00:08.6]} 61. Kd3 {[%clk 0:00:15.8]} 61... Kg3 {[%clk 0:00:08.4]} 62.
Nxg6 {[%clk 0:00:16.8]} 62... Kg4 {[%clk 0:00:09.8]} 63. Ne5+ {[%clk 0:00:17.2]}
63... Kxg5 {[%clk 0:00:10.9]} 64. Nd7 {[%clk 0:00:18.2]} 64... b5 {[%clk
0:00:11.6]} 65. Kc3 {[%clk 0:00:17]} 65... Kf5 {[%clk 0:00:12.8]} 66. Kb4 {[%clk
0:00:18.1]} 66... Ke6 {[%clk 0:00:14]} 67. Nc5+ {[%clk 0:00:16.1]} 67... Kd5
{[%clk 0:00:15.1]} 68. Nb3 {[%clk 0:00:17.7]} 68... Kc6 {[%clk 0:00:13.8]} 69.
Nd4+ {[%clk 0:00:19]} 69... Kd5 {[%clk 0:00:15.4]} 70. Nxb5 {[%clk 0:00:20.9]}
70... Nxb5 {[%clk 0:00:17.1]} 1/2-1/2

[Event "*** Titled Tuesday Blitz"]
[Site "Chess.com"]
[Date "2018.12.04"]
[Round "7"]
[White "mazetofonias"]
[Black "abubakrtagelsir"]
[Result "1-0"]
[WhiteElo "2562"]
[BlackElo "2290"]
[TimeControl "180+2"]
[EndTime "14:40:15 PST"]
[Termination "mazetofonias won by checkmate"]

1. e4 {[%clk 0:03:01.9]} 1... d6 {[%clk 0:03:00.7]} 2. d4 {[%clk 0:03:01.6]}
2... Nf6 {[%clk 0:03:01.5]} 3. Nc3 {[%clk 0:03:02.9]} 3... g6 {[%clk 0:02:59.5]}
4. Bg5 {[%clk 0:03:03]} 4... Bg7 {[%clk 0:03:00.3]} 5. Qd2 {[%clk 0:03:04.5]}
5... h6 {[%clk 0:02:58.7]} 6. Bh4 {[%clk 0:03:01.3]} 6... c6 {[%clk 0:02:59.2]}
7. O-O-O {[%clk 0:02:57.5]} 7... b5 {[%clk 0:02:59.2]} 8. Bd3 {[%clk 0:02:51.2]}
8... e5 {[%clk 0:02:52.5]} 9. dxe5 {[%clk 0:02:49]} 9... dxe5 {[%clk 0:02:52.7]}
10. f4 {[%clk 0:02:50.2]} 10... Qa5 {[%clk 0:02:48]} 11. fxe5 {[%clk 0:02:47]}
11... Ng4 {[%clk 0:02:48]} 12. Nf3 {[%clk 0:02:11.1]} 12... O-O {[%clk
0:02:45.4]} 13. a3 {[%clk 0:02:10.8]} 13... b4 {[%clk 0:02:44.7]} 14. Na2 {[%clk
0:02:11.2]} 14... Nxe5 {[%clk 0:02:35.5]} 15. Nxb4 {[%clk 0:02:08.6]} 15... Bg4
{[%clk 0:02:03.7]} 16. Rhf1 {[%clk 0:02:06.5]} 16... Nbd7 {[%clk 0:01:59.8]} 17.
Bg3 {[%clk 0:02:00.2]} 17... Rab8 {[%clk 0:01:47.8]} 18. Rde1 {[%clk 0:01:53.9]}
18... c5 {[%clk 0:01:43.2]} 19. Nd5 {[%clk 0:01:53.3]} 19... Nxd3+ {[%clk
0:01:41.1]} 20. cxd3 {[%clk 0:01:40.1]} 20... Bxb2+ {[%clk 0:01:40.6]} 21. Kd1
{[%clk 0:01:39.7]} 21... Qxa3 {[%clk 0:01:25.2]} 22. Bxb8 {[%clk 0:01:26.8]}
22... Rxb8 {[%clk 0:01:25.4]} 23. Ke2 {[%clk 0:01:28.7]} 23... Bd4 {[%clk
0:01:17.4]} 24. Rb1 {[%clk 0:01:23.3]} 24... Rd8 {[%clk 0:01:06.4]} 25. Qxh6
{[%clk 0:01:21.8]} 25... c4 {[%clk 0:00:56.9]} 26. dxc4 {[%clk 0:01:14.7]} 26...
Bg7 {[%clk 0:00:41.9]} 27. Qg5 {[%clk 0:01:06.4]} 27... Qa2+ {[%clk 0:00:37.8]}
28. Qd2 {[%clk 0:01:02.8]} 28... Qxc4+ {[%clk 0:00:36.2]} 29. Qd3 {[%clk
0:01:04.1]} 29... Qa2+ {[%clk 0:00:34.9]} 30. Qd2 {[%clk 0:00:56]} 30... Qa4
{[%clk 0:00:22.9]} 31. Kf2 {[%clk 0:00:53.3]} 31... Qxe4 {[%clk 0:00:20.3]} 32.
Rbe1 {[%clk 0:00:51.9]} 32... Qa4 {[%clk 0:00:18.8]} 33. Kg1 {[%clk 0:00:51.5]}
33... Bxf3 {[%clk 0:00:19.8]} 34. Rxf3 {[%clk 0:00:50.4]} 34... Qd4+ {[%clk
0:00:19.2]} 35. Qxd4 {[%clk 0:00:48.8]} 35... Bxd4+ {[%clk 0:00:20.1]} 36. Kf1
{[%clk 0:00:50.7]} 36... Ne5 {[%clk 0:00:21.1]} 37. Ne7+ {[%clk 0:00:38.4]}
37... Kg7 {[%clk 0:00:22]} 38. Ra3 {[%clk 0:00:33.8]} 38... Nc4 {[%clk
0:00:20.6]} 39. Ra4 {[%clk 0:00:31.9]} 39... Ne3+ {[%clk 0:00:21.1]} 40. Ke2
{[%clk 0:00:30.5]} 40... Nc2 {[%clk 0:00:17.3]} 41. Rc1 {[%clk 0:00:28.2]} 41...
Ne3 {[%clk 0:00:18]} 42. Nc6 {[%clk 0:00:27.3]} 42... Bb2 {[%clk 0:00:14.3]} 43.
Nxd8 {[%clk 0:00:24.9]} 43... Bxc1 {[%clk 0:00:14.6]} 44. Rxa7 {[%clk
0:00:26.8]} 44... Nf5 {[%clk 0:00:14.8]} 45. Nxf7 {[%clk 0:00:25.5]} 45... Kf6
{[%clk 0:00:14.8]} 46. g4 {[%clk 0:00:24.7]} 46... Nd4+ {[%clk 0:00:14.5]} 47.
Kd3 {[%clk 0:00:22.9]} 47... Nf3 {[%clk 0:00:13.6]} 48. h3 {[%clk 0:00:24.2]}
48... Ng1 {[%clk 0:00:13.9]} 49. Ke4 {[%clk 0:00:25]} 49... Nxh3 {[%clk
0:00:14.3]} 50. Nd6 {[%clk 0:00:26.1]} 50... Ng5+ {[%clk 0:00:14.4]} 51. Kd5
{[%clk 0:00:27.4]} 51... Be3 {[%clk 0:00:15.2]} 52. Ra6 {[%clk 0:00:27.6]} 52...
Kg7 {[%clk 0:00:15.7]} 53. Rc6 {[%clk 0:00:22]} 53... Bf4 {[%clk 0:00:16.2]} 54.
Ne4 {[%clk 0:00:21.2]} 54... Nxe4 {[%clk 0:00:11.9]} 55. Kxe4 {[%clk 0:00:23.1]}
55... Bg5 {[%clk 0:00:12.6]} 56. Kd5 {[%clk 0:00:24.5]} 56... Bf6 {[%clk
0:00:12.7]} 57. Ke6 {[%clk 0:00:25.7]} 57... Bg5 {[%clk 0:00:13.4]} 58. Rc7+
{[%clk 0:00:25.8]} 58... Kh6 {[%clk 0:00:13.3]} 59. Kf7 {[%clk 0:00:27.2]} 59...
Be3 {[%clk 0:00:13.5]} 60. Rc6 {[%clk 0:00:23.6]} 60... Kg5 {[%clk 0:00:12.9]}
61. Rxg6+ {[%clk 0:00:24.6]} 61... Kh4 {[%clk 0:00:14.1]} 62. Kf6 {[%clk
0:00:24.5]} 62... Kg3 {[%clk 0:00:07.4]} 63. Kf5 {[%clk 0:00:25.1]} 63... Kh4
{[%clk 0:00:06.7]} 64. g5 {[%clk 0:00:23.2]} 64... Kh5 {[%clk 0:00:06.4]} 65.
Rh6# {[%clk 0:00:24.1]} 1-0